fUST/lending_fUST_20240918
["ID","MTS","AMOUNT","RATE_DAILY","PERIOD"]
[338434027,1726636240082,-500.0,0.00019178,2]
[338434028,1726636240094,-500.0,0.00019178,2]
[338434029,1726636240106,-500.0,0.00019178,2]
[338434031,1726636240116,-500.0,0.00019178,2]
[338434034,1726636240125,-500.0,0.00019178,2]
[338434035,1726636240135,-2445.49,0.00019178,2]
[338434036,1726636240147,-685.6,0.00019178,2]
[338434037,1726636240156,-500.0,0.00019178,2]
[338434038,1726636240168,-542.31879306,0.00019178,2]
[338434039,1726636240179,-500.0,0.00019178,2]
[338434040,1726636240188,-500.0,0.00019178,2]
[338434041,1726636240198,-500.0,0.00019178,2]
[338434042,1726636240210,-500.0,0.00019178,2]
[338434043,1726636240220,-500.0,0.00019178,2]
[338434044,1726636240230,-500.0,0.00019178,2]
[338434045,1726636240240,-500.0,0.00019178,2]
[338434046,1726636240250,-500.0,0.00019178,2]
[338434047,1726636240260,-500.0,0.00019178,2]
[338434048,1726636240271,-500.0,0.00019178,2]
[338434049,1726636240283,-500.0,0.00019178,2]
[338434050,1726636240296,-500.0,0.00019178,2]
[338434051,1726636240307,-853.76,0.00019178,2]
[338434052,1726636240316,-435.42923858,0.00019178,2]
[338434053,1726636240326,-2084.84,0.00019178,2]
[338434055,1726636240336,-613.01407743,0.00019178,2]
[338434057,1726636240346,-500.0,0.00019178,2]
[338434059,1726636240356,-1518.2,0.00019178,2]
[338434061,1726636240365,-771.62,0.00019178,2]
[338434063,1726636240374,-1738.66,0.00019178,2]
[338434064,1726636240383,-500.0,0.00019178,2]
[338434065,1726636240393,-500.0,0.00019178,2]
[338434066,1726636240403,-500.0,0.00019178,2]
[338434067,1726636240413,-500.0,0.00019178,2]
[338434068,1726636240423,-500.0,0.00019178,2]
[338434069,1726636240432,-500.0,0.00019178,2]
[338434070,1726636240442,-500.0,0.00019178,2]
[338434071,1726636240452,-1246.0,0.00019178,2]
[338434072,1726636240461,-500.0,0.00019178,2]
[338434073,1726636240471,-500.0,0.00019178,2]
[338434074,1726636240481,-605.62,0.00019178,2]
[338434075,1726636240490,-1577.25,0.00019178,2]
[338434076,1726636240500,-500.0,0.00019178,2]
[338434077,1726636240509,-500.0,0.00019178,2]
[338434078,1726636240519,-261.40377493,0.00019178,2]
[338434079,1726636240528,-703.53,0.00019178,2]
[338434080,1726636240538,-262.88074097,0.00019178,2]
[338434081,1726636240550,-340.34550784,0.00019178,2]
[338434082,1726636240562,-1119.41,0.00019178,2]
[338434083,1726636240571,-500.0,0.00019178,2]
[338434084,1726636240583,-500.0,0.00019178,2]
[338434085,1726636240593,-500.0,0.00019178,2]
[338434086,1726636240602,-1084.07,0.00019178,2]
[338434087,1726636240612,-500.0,0.00019178,2]
[338434088,1726636240621,-223.49469264,0.00019178,2]
[338434089,1726636240631,-2157.28,0.00019178,2]
[338434090,1726636240641,-500.0,0.00019178,2]
[338434091,1726636240650,-500.0,0.00019178,2]
[338434092,1726636240660,-500.0,0.00019178,2]
[338434093,1726636240670,-500.0,0.00019178,2]
[338434094,1726636240679,-500.0,0.00019178,2]
[338434095,1726636240689,-500.0,0.00019178,2]
[338434096,1726636240698,-500.0,0.00019178,2]
[338434097,1726636240708,-552.58,0.00019178,2]
[338434098,1726636240717,-979.58,0.00019178,2]
[338434099,1726636240726,-500.0,0.00019178,2]
[338434100,1726636240736,-500.0,0.00019178,2]
[338434101,1726636240746,-1782.56,0.00019178,2]
[338434102,1726636240755,-500.0,0.00019178,2]
[338434103,1726636240765,-500.0,0.00019178,2]
[338434104,1726636240775,-500.0,0.00019178,2]
[338434105,1726636240784,-500.0,0.00019178,2]
[338434106,1726636240794,-500.0,0.00019178,2]
[338434107,1726636240803,-500.0,0.00019178,2]
[338434108,1726636240813,-500.0,0.00019178,2]
[338434109,1726636240822,-720.21,0.00019178,2]
[338434110,1726636240831,-500.0,0.00019178,2]
[338434111,1726636240840,-1230.4,0.00019178,2]
[338434112,1726636240850,-500.0,0.00019178,2]
[338434113,1726636240859,-500.0,0.00019178,2]
[338434114,1726636240868,-500.0,0.00019178,2]
[338434115,1726636240877,-500.0,0.00019178,2]
[338434116,1726636240887,-500.0,0.00019178,2]
[338434117,1726636240896,-1312.16,0.00019178,2]
[338434118,1726636240905,-500.0,0.00019178,2]
[338434119,1726636240915,-500.0,0.00019178,2]
[338434120,1726636240924,-568.94,0.00019178,2]
[338434121,1726636240934,-500.98752862,0.00019178,2]
[338434122,1726636240943,-573.29967654,0.00019178,2]
[338434123,1726636240952,-1683.57,0.00019178,2]
[338434124,1726636240961,-607.19,0.00019178,2]
[338434125,1726636240970,-174.24022888,0.00019178,2]
[338434126,1726636240979,-526.67,0.00019178,2]
[338434127,1726636240988,-500.0,0.00019178,2]
[338434128,1726636240997,-500.0,0.00019178,2]
[338434129,1726636241005,-500.0,0.00019178,2]
[338434130,1726636241014,-500.0,0.00019178,2]
[338434131,1726636241023,-500.0,0.00019178,2]
[338434132,1726636241032,-500.0,0.00019178,2]
[338434133,1726636241041,-500.0,0.00019178,2]
[338434134,1726636241057,-500.0,0.00019178,2]
[338434135,1726636241066,-500.0,0.00019178,2]
[338434136,1726636241075,-500.0,0.00019178,2]
[338434137,1726636241084,-500.0,0.00019178,2]
[338434138,1726636241093,-596.58861169,0.00019178,2]
[338434139,1726636241102,-1364.46,0.00019178,2]
[338434140,1726636241111,-339.63620813,0.00019178,2]
[338434141,1726636241120,-500.0,0.00019178,2]
[338434142,1726636241129,-500.0,0.00019178,2]
[338434143,1726636241138,-532.59370573,0.00019178,2]
[338434144,1726636241148,-500.0,0.00019178,2]
[338434145,1726636241157,-875.03,0.00019178,2]
[338434146,1726636241166,-500.0,0.00019178,2]
[338434147,1726636241175,-500.0,0.00019178,2]
[338434148,1726636241184,-500.0,0.00019178,2]
[338434149,1726636241193,-523.24,0.00019178,2]
[338434150,1726636241202,-500.0,0.00019178,2]
[338434151,1726636241211,-500.0,0.00019178,2]
[338434152,1726636241222,-1315.72,0.00019178,2]
[338434153,1726636241233,-1686.73,0.00019178,2]
[338434154,1726636241243,-500.0,0.00019178,2]
[338434155,1726636241254,-500.0,0.00019178,2]
[338434156,1726636241264,-500.0,0.00019178,2]
[338434157,1726636241275,-500.0,0.00019178,2]
[338434158,1726636241285,-500.0,0.00019178,2]
[338434159,1726636241297,-500.0,0.00019178,2]
[338434160,1726636241307,-2241.26,0.00019178,2]
[338434161,1726636241318,-1073.75,0.00019178,2]
[338434162,1726636241327,-1325.82,0.00019178,2]
[338434163,1726636241338,-500.0,0.00019178,2]
[338434164,1726636241349,-1199.35,0.00019178,2]
[338434165,1726636241360,-500.0,0.00019178,2]
[338434166,1726636241371,-735.43,0.00019178,2]
[338434167,1726636241383,-500.0,0.00019178,2]
[338434168,1726636241394,-2354.33,0.00019178,2]
[338434169,1726636241403,-500.0,0.00019178,2]
[338434170,1726636241415,-500.0,0.00019178,2]
[338434171,1726636241562,-502.83589246,0.00019178,2]
[338434172,1726636241571,-500.0,0.00019178,2]
[338434173,1726636241585,-500.0,0.00019178,2]
[338434174,1726636241595,-500.0,0.00019178,2]
[338434175,1726636241605,-500.0,0.00019178,2]
[338434176,1726636241617,-500.0,0.00019178,2]
[338434177,1726636241628,-501.69517399,0.00019178,2]
[338434178,1726636241638,-500.0,0.00019178,2]
[338434179,1726636241649,-533.87,0.00019178,2]
[338434180,1726636241659,-1879.22,0.00019178,2]
[338434181,1726636241670,-891.01,0.00019178,2]
[338434182,1726636241680,-500.0,0.00019178,2]
[338434183,1726636241690,-500.0,0.00019178,2]
[338434184,1726636241701,-500.0,0.00019178,2]
[338434185,1726636241713,-500.0,0.00019178,2]
[338434186,1726636241722,-525.69,0.00019178,2]
[338434187,1726636241733,-500.0,0.00019178,2]
[338434188,1726636241743,-681.31,0.00019178,2]
[338434189,1726636241752,-500.0,0.00019178,2]
[338434190,1726636241762,-500.0,0.00019178,2]
[338434191,1726636241773,-500.0,0.00019178,2]
[338434192,1726636241784,-500.0,0.00019178,2]
[338434193,1726636241799,-500.0,0.00019178,2]
[338434194,1726636241810,-500.0,0.00019178,2]
[338434195,1726636241820,-500.0,0.00019178,2]
[338434196,1726636241832,-500.0,0.00019178,2]
[338434197,1726636241842,-500.0,0.00019178,2]
[338434198,1726636241852,-500.0,0.00019178,2]
[338434199,1726636241862,-500.0,0.00019178,2]
[338434200,1726636241873,-500.0,0.00019178,2]
[338434201,1726636241883,-500.0,0.00019178,2]
[338434202,1726636241894,-500.0,0.00019178,2]
[338434203,1726636241905,-500.0,0.00019178,2]
[338434204,1726636241915,-500.0,0.00019178,2]
[338434205,1726636241925,-500.0,0.00019178,2]
[338434206,1726636241935,-500.0,0.00019178,2]
[338434207,1726636241946,-500.0,0.00019178,2]
[338434208,1726636241957,-507.54994266,0.00019178,2]
[338434209,1726636241968,-500.0,0.00019178,2]
[338434210,1726636241980,-500.0,0.00019178,2]
[338434211,1726636241989,-2033.2,0.00019178,2]
[338434212,1726636242000,-391.66560742,0.00019178,2]
[338434213,1726636242010,-500.0,0.00019178,2]
[338434214,1726636242021,-1000.0,0.00019178,2]
[338434215,1726636242032,-500.0,0.00019178,2]
[338434216,1726636242042,-500.0,0.00019178,2]
[338434217,1726636242053,-1206.65,0.00019178,2]
[338434218,1726636242063,-500.0,0.00019178,2]
[338434219,1726636242074,-981.36,0.00019178,2]
[338434220,1726636242085,-500.0,0.00019178,2]
[338434221,1726636242095,-1510.25,0.00019178,2]
[338434222,1726636242105,-500.0,0.00019178,2]
[338434223,1726636242114,-501.37750576,0.00019178,2]
[338434224,1726636242123,-2622.57,0.00019178,2]
[338434225,1726636242132,-500.0,0.00019178,2]
[338434226,1726636242142,-3535.4,0.00019178,2]
[338434227,1726636242153,-500.0,0.00019178,2]
[338434228,1726636242163,-500.0,0.00019178,2]
[338434229,1726636242174,-500.0,0.00019178,2]
[338434230,1726636242186,-500.0,0.00019178,2]
[338434231,1726636242197,-500.0,0.00019178,2]
[338434232,1726636242208,-547.8,0.00019178,2]
[338434233,1726636242219,-500.0,0.00019178,2]
[338434234,1726636242230,-500.0,0.00019178,2]
[338434235,1726636242239,-939.51,0.00019178,2]
[338434236,1726636242249,-500.0,0.00019178,2]
[338434237,1726636242260,-500.0,0.00019178,2]
[338434238,1726636242269,-2316.71,0.00019178,2]
[338434239,1726636242281,-500.0,0.00019178,2]
[338434240,1726636242292,-2299.35,0.00019178,2]
[338434241,1726636242305,-1746.98,0.00019178,2]
[338434242,1726636242315,-506.85,0.00019178,2]
[338434243,1726636242324,-500.0,0.00019178,2]
[338434244,1726636242334,-500.0,0.00019178,2]
[338434245,1726636242345,-500.0,0.00019178,2]
[338434246,1726636242355,-2259.01,0.00019178,2]
[338434247,1726636242366,-309.0,0.00019178,2]
[338434248,1726636242376,-500.0,0.00019178,2]
[338434249,1726636242386,-500.0,0.00019178,2]
[338434250,1726636242396,-500.0,0.00019178,2]
[338434251,1726636242407,-500.0,0.00019178,2]
[338434252,1726636242417,-500.0,0.00019178,2]
[338434253,1726636242427,-182.84712699,0.00019178,2]
[338434254,1726636242438,-1466.0,0.00019178,2]
[338434255,1726636242449,-2517.23,0.00019178,2]
[338434256,1726636242459,-500.0,0.00019178,2]
[338434257,1726636242470,-500.0,0.00019178,2]
[338434258,1726636242480,-1202.17,0.00019178,2]
[338434259,1726636242491,-500.0,0.00019178,2]
[338434260,1726636242501,-500.0,0.00019178,2]
[338434261,1726636242512,-500.83,0.00019178,2]
[338434262,1726636242523,-500.0,0.00019178,2]
[338434263,1726636242534,-500.0,0.00019178,2]
[338434264,1726636242545,-500.0,0.00019178,2]
[338434265,1726636242556,-500.0,0.00019178,2]
[338434266,1726636242566,-500.0,0.00019178,2]
[338434267,1726636242576,-500.0,0.00019178,2]
[338434268,1726636242590,-500.0,0.00019178,2]
[338434269,1726636242600,-560.7,0.00019178,2]
[338434270,1726636242611,-500.0,0.00019178,2]
[338434271,1726636242622,-1048.48,0.00019178,2]
[338434272,1726636242632,-500.0,0.00019178,2]
[338434273,1726636242644,-581.23,0.00019178,2]
[338434274,1726636242654,-500.0,0.00019178,2]
[338434275,1726636242664,-500.0,0.00019178,2]
[338434276,1726636242674,-569.92,0.00019178,2]
[338434277,1726636242684,-500.0,0.00019178,2]
[338434278,1726636242695,-500.0,0.00019178,2]
[338434279,1726636242706,-500.0,0.00019178,2]
[338434280,1726636242717,-500.0,0.00019178,2]
[338434281,1726636242726,-500.0,0.00019178,2]
[338434282,1726636242750,-500.0,0.00019178,2]
[338434283,1726636242760,-1258.19,0.00019178,2]
[338434284,1726636242770,-500.0,0.00019178,2]
[338434285,1726636242779,-825.1,0.00019178,2]
[338434286,1726636242789,-500.0,0.00019178,2]
[338434287,1726636242800,-3280.11,0.00019178,2]
[338434288,1726636242812,-500.0,0.00019178,2]
[338434289,1726636242823,-500.0,0.00019178,2]
[338434290,1726636242834,-1384.23,0.00019178,2]
[338434291,1726636242846,-500.0,0.00019178,2]
[338434292,1726636242857,-500.0,0.00019178,2]
[338434293,1726636242868,-500.0,0.00019178,2]
[338434294,1726636242880,-500.0,0.00019178,2]
[338434295,1726636242891,-1950.3,0.00019178,2]
[338434296,1726636242902,-500.0,0.00019178,2]
[338434297,1726636242913,-500.0,0.00019178,2]
[338434298,1726636242922,-511.0,0.00019178,2]
[338434299,1726636242933,-500.0,0.00019178,2]
[338434300,1726636242945,-1982.38,0.00019178,2]
[338434301,1726636242955,-248.80975726,0.00019178,2]
[338434302,1726636242966,-500.0,0.00019178,2]
[338434303,1726636242977,-538.05000947,0.00019178,2]
[338434304,1726636242989,-500.0,0.00019178,2]
[338434305,1726636243000,-500.0,0.00019178,2]
[338434306,1726636243010,-500.0,0.00019178,2]
[338434307,1726636243022,-836.53,0.00019178,2]
[338434308,1726636243032,-900.96,0.00019178,2]
[338434309,1726636243042,-3026.76,0.00019178,2]
[338434311,1726636243055,-500.0,0.00019178,2]
[338434312,1726636243065,-500.0,0.00019178,2]
[338434313,1726636243074,-939.24,0.00019178,2]
[338434314,1726636243084,-500.0,0.00019178,2]
[338434315,1726636243094,-517.87,0.00019178,2]
[338434317,1726636243105,-500.0,0.00019178,2]
[338434318,1726636243114,-500.0,0.00019178,2]
[338434319,1726636243124,-500.0,0.00019178,2]
[338434320,1726636243133,-1944.09,0.00019178,2]
[338434322,1726636243143,-305.75426167,0.00019178,2]
[338434324,1726636243154,-655.02,0.00019178,2]
[338434325,1726636243164,-500.0,0.00019178,2]
[338434326,1726636243176,-2706.18,0.00019178,2]
[338434327,1726636243187,-503.8,0.00019178,2]
[338434328,1726636243198,-500.0,0.00019178,2]
[338434329,1726636243209,-500.0,0.00019178,2]
[338434330,1726636243220,-998.57,0.00019178,2]
[338434331,1726636243231,-903.73,0.00019178,2]
[338434332,1726636243243,-500.0,0.00019178,2]
[338434333,1726636243254,-4131.18,0.00019178,2]
[338434334,1726636243266,-500.0,0.00019178,2]
[338434335,1726636243277,-500.0,0.00019178,2]
[338434336,1726636243288,-500.0,0.00019178,2]
[338434337,1726636243300,-1823.48,0.00019178,2]
[338434338,1726636243309,-747.87,0.00019178,2]
[338434339,1726636243319,-1954.52,0.00019178,2]
[338434340,1726636243334,-500.0,0.00019178,2]
[338434341,1726636243345,-2596.4,0.00019178,2]
[338434342,1726636243355,-2381.06,0.00019178,2]
[338434343,1726636243365,-508.28852983,0.00019178,2]
[338434344,1726636243377,-500.0,0.00019178,2]
[338434345,1726636243387,-500.0,0.00019178,2]
[338434346,1726636243400,-500.0,0.00019178,2]
[338434347,1726636243412,-1223.12,0.00019178,2]
[338434348,1726636243423,-500.0,0.00019178,2]
[338434349,1726636243435,-3991.9,0.00019178,2]
[338434350,1726636243446,-500.0,0.00019178,2]
[338434351,1726636243458,-500.0,0.00019178,2]
[338434352,1726636243469,-2713.95,0.00019178,2]
[338434353,1726636243480,-1014.34,0.00019178,2]
[338434354,1726636243491,-1236.45,0.00019178,2]
[338434355,1726636243503,-500.0,0.00019178,2]
[338434356,1726636243512,-829.68,0.00019178,2]
[338434357,1726636243521,-500.0,0.00019178,2]
[338434358,1726636243531,-500.0,0.00019178,2]
[338434359,1726636243540,-619.87,0.00019178,2]
[338434360,1726636243551,-500.0,0.00019178,2]
[338434361,1726636243561,-2573.65,0.00019178,2]
[338434362,1726636243570,-2573.65,0.00019178,2]
[338434363,1726636243584,-2573.65,0.00019178,2]
[338434364,1726636243594,-2573.65,0.00019178,2]
[338434365,1726636243603,-637.39,0.00019178,2]
[338434366,1726636243613,-2573.65,0.00019178,2]
[338434367,1726636243623,-2573.65,0.00019178,2]
[338434368,1726636243634,-2573.65,0.00019178,2]
[338434369,1726636243643,-2573.65,0.00019178,2]
[338434370,1726636243653,-2573.65,0.00019178,2]
[338434371,1726636243664,-566.23,0.00019178,2]
[338434372,1726636243674,-2573.65,0.00019178,2]
[338434373,1726636243684,-2573.65,0.00019178,2]
[338434374,1726636243695,-779.26,0.00019178,2]
[338434377,1726636243705,-2573.65,0.00019178,2]
[338434378,1726636243715,-2573.65,0.00019178,2]
[338434379,1726636243725,-2573.65,0.00019178,2]
[338434380,1726636243735,-2573.65,0.00019178,2]
[338434381,1726636243744,-2573.65,0.00019178,2]
[338434382,1726636243755,-2573.65,0.00019178,2]
[338434383,1726636243765,-2573.65,0.00019178,2]
[338434384,1726636243776,-2573.65,0.00019178,2]
[338434385,1726636243786,-2573.65,0.00019178,2]
[338434386,1726636243797,-1254.62,0.00019178,2]
[338434387,1726636243806,-2573.65,0.00019178,2]
[338434388,1726636243816,-2573.65,0.00019178,2]
[338434389,1726636243826,-500.0,0.00019178,2]
[338434390,1726636243836,-2573.65,0.00019178,2]
[338434391,1726636243845,-2573.71136509,0.00019178,2]
[338434392,1726636243855,-2776.44,0.00019178,2]
[338434393,1726636243865,-500.0,0.00019178,2]
[338434394,1726636243876,-703.3,0.00019178,2]
[338434396,1726636243886,-500.0,0.00019178,2]
[338434397,1726636243896,-2291.99,0.00019178,2]
[338434398,1726636243905,-500.0,0.00019178,2]
[338434400,1726636243915,-500.0,0.00019178,2]
[338434403,1726636244134,-664.22,0.00019178,2]
[338434404,1726636244145,-500.0,0.00019178,2]
[338434405,1726636244155,-500.0,0.00019178,2]
[338434406,1726636244165,-500.0,0.00019178,2]
[338434407,1726636244174,-500.0,0.00019178,2]
[338434408,1726636244184,-1649.0,0.00019178,2]
[338434409,1726636244194,-500.0,0.00019178,2]
[338434410,1726636244204,-577.05,0.00019178,2]
[338434411,1726636244214,-1534.35,0.00019178,2]
[338434412,1726636244224,-1579.12,0.00019178,2]
[338434413,1726636244233,-1133.38,0.00019178,2]
[338434414,1726636244243,-687.97,0.00019178,2]
[338434415,1726636244253,-565.77,0.00019178,2]
[338434416,1726636244262,-857.26,0.00019178,2]
[338434417,1726636244271,-522.11,0.00019178,2]
[338434418,1726636244281,-500.0,0.00019178,2]
[338434419,1726636244290,-500.0,0.00019178,2]
[338434420,1726636244302,-1206.93,0.00019178,2]
[338434421,1726636244311,-500.0,0.00019178,2]
[338434422,1726636244321,-1252.14,0.00019178,2]
[338434423,1726636244330,-2112.33,0.00019178,2]
[338434424,1726636244340,-500.0,0.00019178,2]
[338434425,1726636244349,-2112.33,0.00019178,2]
[338434426,1726636244358,-875.74,0.00019178,2]
[338434427,1726636244368,-1088.76,0.00019178,2]
[338434428,1726636244377,-500.0,0.00019178,2]
[338434429,1726636244387,-500.0,0.00019178,2]
[338434430,1726636244398,-500.0,0.00019178,2]
[338434431,1726636244408,-2430.11,0.00019178,2]
[338434432,1726636244418,-500.0,0.00019178,2]
[338434433,1726636244427,-2112.33,0.00019178,2]
[338434434,1726636244436,-2112.33,0.00019178,2]
[338434435,1726636244446,-2112.33,0.00019178,2]
[338434436,1726636244455,-2112.33,0.00019178,2]
[338434437,1726636244464,-2112.33,0.00019178,2]
[338434438,1726636244474,-590.62,0.00019178,2]
[338434439,1726636244484,-2112.33,0.00019178,2]
[338434440,1726636244493,-2112.33,0.00019178,2]
[338434441,1726636244502,-2112.33,0.00019178,2]
[338434442,1726636244511,-500.0,0.00019178,2]
[338434443,1726636244521,-2112.33,0.00019178,2]
[338434444,1726636244530,-2112.33,0.00019178,2]
[338434445,1726636244540,-2112.33,0.00019178,2]
[338434446,1726636244550,-2112.33,0.00019178,2]
[338434447,1726636244560,-2112.33,0.00019178,2]
[338434448,1726636244570,-2112.33,0.00019178,2]
[338434449,1726636244583,-2112.33,0.00019178,2]
[338434450,1726636244593,-2112.33,0.00019178,2]
[338434451,1726636244602,-556.92,0.00019178,2]
[338434452,1726636244612,-2112.33,0.00019178,2]
[338434453,1726636244622,-500.0,0.00019178,2]
[338434454,1726636244631,-2112.33,0.00019178,2]
[338434455,1726636244641,-2112.33,0.00019178,2]
[338434456,1726636244650,-2112.33,0.00019178,2]
[338434457,1726636244660,-2112.33,0.00019178,2]
[338434458,1726636244669,-500.0,0.00019178,2]
[338434459,1726636244679,-2112.55552556,0.00019178,2]
[338434460,1726636244688,-500.0,0.00019178,2]
[338434461,1726636244698,-500.0,0.00019178,2]
[338434462,1726636244707,-1753.96,0.00019178,2]
[338434463,1726636244717,-562.52,0.00019178,2]
[338434464,1726636244726,-500.0,0.00019178,2]
[338434465,1726636244736,-500.0,0.00019178,2]
[338434466,1726636244746,-1813.94,0.00019178,2]
[338434467,1726636244755,-500.0,0.00019178,2]
[338434468,1726636244765,-567.2668096,0.00019178,2]
[338434469,1726636244775,-1109.6,0.00019178,2]
[338434470,1726636244785,-500.0,0.00019178,2]
[338434471,1726636244794,-739.39,0.00019178,2]
[338434472,1726636244804,-1776.55,0.00019178,2]
[338434473,1726636244814,-500.0,0.00019178,2]
[338434474,1726636244823,-500.0,0.00019178,2]
[338434475,1726636244834,-158.89598799,0.00019178,2]
[338434476,1726636244843,-500.0,0.00019178,2]
[338434477,1726636244853,-500.0,0.00019178,2]
[338434478,1726636244862,-500.0,0.00019178,2]
[338434479,1726636244872,-500.0,0.00019178,2]
[338434480,1726636244882,-2331.23,0.00019178,2]
[338434481,1726636244892,-634.8,0.00019178,2]
[338434482,1726636244902,-500.0,0.00019178,2]
[338434483,1726636244912,-500.0,0.00019178,2]
[338434484,1726636244922,-500.0,0.00019178,2]
[338434485,1726636244932,-500.0,0.00019178,2]
[338434486,1726636244942,-500.0,0.00019178,2]
[338434487,1726636244951,-1518.19,0.00019178,2]
[338434488,1726636244960,-500.0,0.00019178,2]
[338434489,1726636244971,-500.0,0.00019178,2]
[338434490,1726636244980,-2460.21,0.00019178,2]
[338434491,1726636244990,-500.0,0.00019178,2]
[338434492,1726636244999,-801.17,0.00019178,2]
[338434493,1726636245009,-758.31,0.00019178,2]
[338434494,1726636245018,-890.17,0.00019178,2]
[338434495,1726636245028,-581.1,0.00019178,2]
[338434496,1726636245037,-500.0,0.00019178,2]
[338434497,1726636245047,-822.31,0.00019178,2]
[338434498,1726636245057,-1802.31,0.00019178,2]
[338434499,1726636245067,-500.0,0.00019178,2]
[338434500,1726636245076,-500.0,0.00019178,2]
[338434501,1726636245086,-3721.54,0.00019178,2]
[338434502,1726636245096,-554.19,0.00019178,2]
[338434503,1726636245105,-500.0,0.00019178,2]
[338434504,1726636245115,-500.0,0.00019178,2]
[338434505,1726636245124,-500.0,0.00019178,2]
[338434506,1726636245134,-500.0,0.00019178,2]
[338434507,1726636245143,-592.82,0.00019178,2]
[338434508,1726636245153,-500.0,0.00019178,2]
[338434509,1726636245163,-500.0,0.00019178,2]
[338434510,1726636245172,-500.0,0.00019178,2]
[338434511,1726636245182,-500.0,0.00019178,2]
[338434512,1726636245191,-500.0,0.00019178,2]
[338434513,1726636245200,-622.45,0.00019178,2]
[338434514,1726636245210,-601.12331123,0.00019178,2]
[338434515,1726636245220,-500.0,0.00019178,2]
[338434516,1726636245229,-1177.59,0.00019178,2]
[338434517,1726636245239,-500.0,0.00019178,2]
[338434518,1726636245248,-2097.29,0.00019178,2]
[338434519,1726636245257,-667.04,0.00019178,2]
[338434520,1726636245267,-500.0,0.00019178,2]
[338434521,1726636245276,-500.0,0.00019178,2]
[338434522,1726636245286,-500.0,0.00019178,2]
[338434523,1726636245296,-558.97,0.00019178,2]
[338434524,1726636245305,-500.0,0.00019178,2]
[338434525,1726636245314,-500.0,0.00019178,2]
[338434526,1726636245323,-294.91661263,0.00019178,2]
[338434527,1726636245333,-1091.36,0.00019178,2]
[338434528,1726636245342,-703.2,0.00019178,2]
[338434529,1726636245351,-569.39,0.00019178,2]
[338434530,1726636245361,-500.0,0.00019178,2]
[338434531,1726636245370,-742.81,0.00019178,2]
[338434532,1726636245379,-501.35,0.00019178,2]
[338434533,1726636245389,-500.0,0.00019178,2]
[338434534,1726636245398,-500.0,0.00019178,2]
[338434535,1726636245407,-744.06,0.00019178,2]
[338434536,1726636245417,-500.0,0.00019178,2]
[338434537,1726636245426,-2529.1,0.00019178,2]
[338434538,1726636245434,-500.0,0.00019178,2]
[338434539,1726636245443,-500.0,0.00019178,2]
[338434540,1726636245452,-500.0,0.00019178,2]
[338434541,1726636245461,-500.0,0.00019178,2]
[338434542,1726636245470,-202.51131607,0.00019178,2]
[338434543,1726636245479,-507.97,0.00019178,2]
[338434544,1726636245489,-500.0,0.00019178,2]